Cogmind - Beta 16 @@@ ROGUE MODE // 2025.10.24 @ 23:07:44 Player: JuustuToug Result: Destroyed by H-88 Terminator with Heavy Machine Gun Performance ------------- Evolutions (8) 4000 Regions Visited (22) 4400 Robots Destroyed (186) 930 Value Destroyed (6371) 6371 Prototype IDs (54) 1080 Alien Tech Used (3) 600 Bonus (2583) 2583 TOTAL SCORE: 19964 Bonus ------- High Alert Combat Kills 67 Follower Combat Kills 1116 Network Hubs Disabled 600 Met Zhirov 300 Scanned by Researcher 500 Cogmind --------- Core Integrity 0/1450 Matter 38/300 Energy 236/240 System Corruption 0% Temperature Cool (8) Movement Hovering (66) Location -2/Protoforge Parts ------- > --- POWER (2) -------- Zero-point Reactor > --- PROPULSION (7) --- Gyrokinetic Inverter Gyrokinetic Inverter > --- UTILITY (12) ----- Enhanced Optical Array Advanced Signal Interpreter Experimental Signal Interpreter Improved Hacking Suite Advanced Corruption Screen > --- WEAPON (2) ------- (None) > --- INVENTORY (5) ---- Transdimensional Reconstructor Transdimensional Reconstructor Enhanced Quantum Rifle Peak State ------------ > --- POWER ------------ Light Antimatter Reactor Light Antimatter Reactor > --- PROPULSION ------- Linear Gravjet Linear Gravjet Antigrav Array Impulse Thruster Array > --- UTILITY ---------- Medium Storage Unit Quantum Shading Machine Advanced Sensor Array Experimental Signal Interpreter Advanced Transmission Jammer Centrium Heavy Armor Plating Improved Hacking Suite Improved Hacking Suite Improved Hacking Suite Improved System Shield > --- WEAPON ----------- Tachyon Dispersion Ray Force Lance > --- INVENTORY -------- Light Antimatter Reactor Improved Diametric Drive Experimental Power Amplifier Structural Scanner Advanced Reaction Control System Improved System Shield Improved System Shield Transdimensional Reconstructor Cooled Plasma Rifle Heavy Missile Launcher [Rating: 148] Favorites ----------- Power Light Ion Engine Engine Light Ion Engine Power Core Micro Nuclear Core Reactor Light Antimatter Reactor Propulsion Aluminum Leg Treads Light Treads Leg Aluminum Leg Wheel Subdweller Monowheel Hover Unit Gyrokinetic Inverter Flight Unit Improved VTOL Module Utility Huge Storage Unit Device Seismic Detector Storage Huge Storage Unit Processor Experimental Signal Interpreter Hackware Hacking Suite Protection Improved Medium Armor Plating Weapon Heavy Assault Rifle Energy Gun Particle Gun Energy Cannon Ion Cannon Ballistic Gun Heavy Assault Rifle Ballistic Cannon Compact Linear Accelerator Launcher Heavy Missile Launcher Slashing Weapon Katana Piercing Weapon Force Lance Build | -11 -10 -10 -10 -8 -7 -7 -7 -5 -5 -5 -5 -4 -4 -4 -4 -4 -4 -3 -3 -2 -2 -2 ------- Run | Yrd Mat Min Sub Mat Fac Sto Rec Fac Upp Upp Zhi Pro Fac Ext Cet Arc Hub Res Tes Res Qua Frg Slots Evolved 16 | . . . . 4 2 . . 4 . . . . 2 . . . . 2 . 2 . . Power 1 | . . . . . . . . 1 . . . . . . . . . . . . . . Propulsion 5 | . . . . 2 1 . . . . . . . . . . . . 1 . 1 . . Utility 10 | . . . . 2 1 . . 3 . . . . 2 . . . . 1 . 1 . . Weapon . | . . . . . . . . . . . . . . . . . . . . . . . Parts Attached 245 | 6 14 . 12 45 27 . 2 12 . 2 6 . 6 19 2 6 3 18 42 14 9 . Power 32 | 1 1 . 4 5 4 . . 3 . . 2 . . 3 . 1 . 1 5 1 1 . Engine 13 | 1 1 . 4 3 1 . . 1 . . 1 . . . . 1 . . . . . . Core 8 | . . . . 2 3 . . 2 . . . . . 1 . . . . . . . . Reactor 11 | . . . . . . . . . . . 1 . . 2 . . . 1 5 1 1 . Propulsion 80 | 2 5 . 2 20 8 . . 2 . . . . . 7 . . 2 7 15 8 2 . Treads 11 | . . . . 11 . . . . . . . . . . . . . . . . . . Leg 19 | 2 5 . 2 7 . . . . . . . . . 2 . . . . . 1 . . Wheel 1 | . . . . 1 . . . . . . . . . . . . . . . . . . Hover 20 | . . . . . . . . . . . . . . . . . . 5 10 5 . . Flight 29 | . . . . 1 8 . . 2 . . . . . 5 . . 2 2 5 2 2 . Utility 97 | 1 3 . 1 11 12 . 2 7 . . 4 . 6 9 2 5 1 9 16 4 4 . Device 38 | . 1 . . 1 4 . 1 2 . . 2 . 2 4 1 . . 7 9 2 2 . Storage 4 | 1 2 . . . 1 . . . . . . . . . . . . . . . . . Processor 13 | . . . . . 2 . . . . . . . 1 2 1 . 1 . 3 2 1 . Hackware 21 | . . . . 1 4 . . 3 . . 1 . 2 1 . 5 . . 3 . 1 . Protection 21 | . . . 1 9 1 . 1 2 . . 1 . 1 2 . . . 2 1 . . . Artifact . | . . . . . . . . . . . . . . . . . . . . . . . Weapon 36 | 2 5 . 5 9 3 . . . . 2 . . . . . . . 1 6 1 2 . Energy Gun 10 | . 1 . 2 1 . . . . . . . . . . . . . 1 3 . 2 . Energy Cannon 5 | . . . 1 3 . . . . . . . . . . . . . . 1 . . . Ballistic Gun 11 | 2 2 . 2 5 . . . . . . . . . . . . . . . . . . Ballistic Cannon 1 | . . . . . . . . . . . . . . . . . . . . 1 . . Launcher 3 | . 1 . . . . . . . . 1 . . . . . . . . 1 . . . Special Weapon . | . . . . . . . . . . . . . . . . . . . . . . . Impact Weapon . | . . . . . . . . . . . . . . . . . . . . . . . Slashing Weapon 5 | . 1 . . . 3 . . . . 1 . . . . . . . . . . . . Piercing Weapon 1 | . . . . . . . . . . . . . . . . . . . 1 . . . Special Melee Weapon . | . . . . . . . . . . . . . . . . . . . . . . . Unidentified Prototypes 35 | . . . . 3 3 . . . . . 4 . . 1 . . . 7 14 2 1 . Parts Lost 121 | . . . 10 20 . . 1 6 1 . . . 4 11 . . 2 12 35 11 8 . Power 14 | . . . 2 3 . . . . 1 . . . . . . . 1 2 4 1 . . Propulsion 47 | . . . 3 8 . . 1 2 . . . . 2 2 . . 1 7 12 5 4 . Utility 47 | . . . 1 6 . . . 3 . . . . 2 9 . . . 3 16 4 3 . Weapon 13 | . . . 4 3 . . . 1 . . . . . . . . . . 3 1 1 . Highest Loss Streak 14 | . . . 4 6 . . 1 4 1 . . . 3 11 . . 1 7 13 14 8 . To Critical Strikes 1 | . . . . . . . . . . . . . . . . . . . . . 1 . Average Backups 17 | 1 20 25 24 24 10 10 9 9 9 9 10 10 9 8 10 9 9 8 8 1 4 3 Power 1 | . 2 2 2 2 1 1 1 . 1 1 . . . 1 2 2 . . . . 1 . Propulsion 4 | . 6 9 8 6 1 1 . . . . . . . . . . . . . . . . Utility 5 | . 4 6 6 8 6 7 6 6 7 7 8 8 6 4 5 4 5 4 3 . . . Weapon 5 | . 7 8 8 7 1 1 1 1 1 . 1 1 1 1 2 1 1 2 2 1 1 1 Tool/Special . | . . . . . . . . . . . . . . . . . . . . . . . Unused Backups 74 | . 11 . 2 26 12 . . 5 . . . 1 . 5 . 4 . 2 1 . 2 3 Power 11 | . 1 . . 7 1 . . . . . . . . 1 . . . . . . 1 . Propulsion 10 | . 2 . . 5 2 . . . . . . . . . . . . . . . 1 . Utility 29 | . 2 . . 7 6 . . 5 . . . 1 . 3 . 3 . 1 1 . . . Weapon 22 | . 6 . 2 7 3 . . . . . . . . 1 . 1 . 1 . . . 1 Tool/Special 2 | . . . . . . . . . . . . . . . . . . . . . . 2 Average Slot Usage (%) 90 | . 97 100 99 98 97 100 98 88 87 84 91 94 88 64 80 83 86 82 69 36 60 33 Engine 7 | . 14 14 13 7 . . . . . . 3 5 5 . . . 3 1 . . . . Core 1 | . . . . 1 6 7 7 9 10 5 4 5 5 . . . . . . . . . Treads 6 | . . . . 28 . . . . . . . . . . . . . . . . . . Leg 11 | . 28 28 27 4 . . . . . . . . . . . . . . . 1 . . Hover 1 | . . . . . . . . . . . . . . . . . . 2 12 9 17 8 Flight 7 | . . . . . 37 38 38 25 23 23 23 23 20 14 26 26 25 19 4 2 6 . Device 9 | . 11 14 11 6 6 7 6 8 5 5 5 11 9 8 13 10 5 9 12 . 3 . Storage 9 | . 14 14 14 9 7 7 7 5 5 5 5 5 5 4 5 5 5 3 3 . . . Processor 3 | . . . . . 5 7 7 5 5 5 5 5 5 7 18 14 13 9 5 11 20 17 Hackware 6 | . . . . 2 14 15 11 18 17 17 17 17 24 16 5 16 26 21 15 5 7 4 Protection 5 | . . . 2 17 2 . 3 5 11 11 10 5 5 4 5 4 . 3 2 . . . Energy Gun 3 | . 7 14 11 . . . . . . . . . . . . . . 1 1 . 3 . Energy Cannon 2 | . . . 2 10 . . . . . . . . . . . . . . . . . . Ballistic Gun 8 | . 20 14 14 7 . . . . . . . . . . . . . . . . . . Slashing Weapon 2 | . . . . . 13 15 13 4 5 7 11 11 6 5 5 4 2 2 . . . . Peak Build Rating 148 | 6 12 12 13 31 48 48 48 65 64 65 75 73 81 84 58 66 82 117 148 83 117 56 Average Rating 38 | 3 11 12 12 26 44 47 46 55 63 62 68 73 78 53 56 60 70 86 115 58 94 55 On Entrance 50 | . 6 12 12 13 20 48 48 43 61 60 65 73 73 72 52 58 60 75 109 84 74 47 Avg Prop Armor Cover (%) 8 | . . . . 9 5 . . . . . . . . 5 . . . 13 3 17 9 . Naked Turns . | . . . . . . . . . . . . . . . . . . . . . . . Heaviest Build 118 | 10 90 90 100 118 23 23 26 30 28 25 30 29 29 36 18 20 26 52 65 16 22 15 Greatest Support 83 | 20 20 20 20 83 34 27 27 35 29 29 29 29 29 40 20 20 26 71 76 52 55 22 Greatest Overweight (x) 7 | . 4 4 4 5 . . 1 . . . 1 . 1 5 . . 1 2 5 . 7 . Average Overweight (x) . | . 2 4 4 1 . . . . . . . . . . . . . . . . . . Largest Inventory Capacity 25 | 8 25 25 25 25 25 10 10 10 10 10 10 10 10 10 10 10 10 10 10 5 5 5 Average Capacity 18 | 6 22 25 25 25 10 10 10 10 10 10 10 10 10 9 10 10 10 9 9 5 5 5 Most Carried 25 | 5 25 25 25 25 24 10 10 10 9 10 10 10 10 10 10 10 10 10 10 5 5 4 Average Carried 17 | 2 21 25 24 24 9 10 9 9 9 9 9 10 9 8 10 9 9 8 8 1 4 3 Final Capacity 25 | 8 25 25 25 25 10 10 10 10 10 10 10 10 10 10 10 10 10 10 5 5 5 5 Final Carried 25 | 2 25 25 24 24 10 10 9 10 9 10 10 10 9 10 10 10 10 10 . 4 4 3 Class Distribution -------------------- 36% | Mutant 25% | Scavenger-Mutant 12% | Hacker-Sprinter 8% | Hacker-Mutant 3% | Hacker-Scout 3% | Scavenger-Sprinter Dominant Class ---------------- Mutant | -10/Materials Mutant | -10/Mines Mutant | -10/Subcaves Scavenger-Mutant | -8/Materials Hacker-Sprinter | -7/Factory Hacker-Sprinter | -7/Storage Sprinter | -7/Recycling Hacker-Sprinter | -5/Factory Hacker-Sprinter | -5/Upper Caves Hacker-Sprinter | -5/Upper Caves Hacker-Mutant | -5/Zhirov Hacker-Sprinter | -4/Proximity Caves Hacker-Sprinter | -4/Factory Hacker-Mutant | -4/Extension Scavenger-Sprinter | -4/Cetus Scavenger-Sprinter | -4/Archives Wizard-Mutant | -4/Hub_04(d) Wizard-Sprinter | -3/Research Hacker-Mutant | -3/Testing Sprinter | -2/Research Hacker-Scout | -2/Quarantine Mutant | -2/Protoforge Resources | -11 -10 -10 -10 -8 -7 -7 -7 -5 -5 -5 -5 -4 -4 -4 -4 -4 -4 -3 -3 -2 -2 -2 ----------- Run | Yrd Mat Min Sub Mat Fac Sto Rec Fac Upp Upp Zhi Pro Fac Ext Cet Arc Hub Res Tes Res Qua Frg Matter Collected 4315 | 226 370 . 370 1047 350 . 80 100 55 90 80 20 . 452 20 50 30 160 786 . 29 . Remotely . | . . . . . . . . . . . . . . . . . . . . . . . Salvage Created 6952 | . 604 . 515 2316 334 . 18 409 40 36 104 21 94 646 . 307 22 210 1247 . 29 . Parts 415 | . 44 . 35 134 21 . 1 14 . 5 2 3 12 19 . 23 1 12 85 . 4 . Haulers Intercepted 5 | . 2 . . 2 . . . . . . . . . 1 . . . . . . . . Recyclers Shooed 2 | . . . . . 1 . . 1 . . . . . . . . . . . . . . Parts Field Recycled . | . . . . . . . . . . . . . . . . . . . . . . . Retrieved Matter . | . . . . . . . . . . . . . . . . . . . . . . . Parts Self-Destructed 19 | . . . 14 . . . . . . 2 2 1 . . . . . . . . . . Prevented . | . . . . . . . . . . . . . . . . . . . . . . . Parts Restored . | . . . . . . . . . . . . . . . . . . . . . . . Kills | -11 -10 -10 -10 -8 -7 -7 -7 -5 -5 -5 -5 -4 -4 -4 -4 -4 -4 -3 -3 -2 -2 -2 ------- Run | Yrd Mat Min Sub Mat Fac Sto Rec Fac Upp Upp Zhi Pro Fac Ext Cet Arc Hub Res Tes Res Qua Frg Combat Hostiles Destroyed 120 | . 15 . 13 40 1 . . . . 5 . 2 10 8 . . 2 7 17 . . . Melee 20 | . . . . . 1 . . . . . . 2 . 4 . . . 2 11 . . . Guns 40 | . 9 . 10 19 . . . . . . . . . . . . . . 2 . . . Cannons 18 | . . . 1 17 . . . . . . . . . . . . . . . . . . AOE 42 | . 6 . 2 4 . . . . . 5 . . 10 4 . . 2 5 4 . . . Classes Destroyed 17 | . 6 . 2 5 . . . . . . . 1 . 1 . . . . 2 . . . Worker 8 | . . . . 2 1 . . . . . . . 1 . . . . . 3 . 1 . Builder 7 | . . . . 4 . . 1 . . . . . . . . . . . 2 . . . Tunneler 3 | . . . . 2 1 . . . . . . . . . . . . . . . . . Hauler 5 | . 2 . . 2 . . . . . . . . . 1 . . . . . . . . Recycler 10 | . 1 . . 2 2 . . 2 . . . . . 1 . . . 1 1 . . . Operator 22 | . 2 . . 3 4 . . 2 . . . . . . . 9 . . 2 . . . Drone 2 | . . . . . . . . . . . . 2 . . . . . . . . . . Watcher 9 | . 3 . . 1 . . . 2 . . . . . 2 . . . . 1 . . . Swarmer 49 | . 9 . 1 3 . . . . . 5 . . 10 5 . . 2 7 7 . . . Grunt 35 | . 6 . 1 27 . . . . . . . . . 1 . . . . . . . . Brawler 1 | . . . . . . . . . . . . . . 1 . . . . . . . . Duelist 1 | . . . . 1 . . . . . . . . . . . . . . . . . . Researcher 2 | . . . . . . . . . . . . . . . . . . . 2 . . . Sentry 11 | . . . 1 8 1 . . . . . . . . 1 . . . . . . . . Hunter 1 | . . . . 1 . . . . . . . . . . . . . . . . . . Programmer 10 | . . . . . . . . . . . . . . . . . . . 10 . . . Subdweller 10 | . . . 10 . . . . . . . . . . . . . . . . . . . Decomposer 3 | . . . . . . . . . 2 1 . . . . . . . . . . . . Best Kill Streak 11 | . 4 . 3 6 2 . 1 2 . 5 . 1 11 5 . 3 2 7 5 . 1 . Combat Bots Only 10 | . 3 . 3 5 1 . . . . 5 . 1 10 5 . . 2 7 4 . . . Max Kills in Single Turn 6 | . 3 . 1 2 1 . 1 1 1 2 . 1 6 4 . 1 2 2 2 . 1 . Gunslinging . | . . . . . . . . . . . . . . . . . . . . . . . Exploded 5 | . 3 . 1 2 . . . . . 2 . . 5 4 . . 2 2 2 . . . Melee 1 | . . . . . 1 . . . . . . 1 . 1 . . . 1 1 . . . Uniques/NPCs Destroyed . | . . . . . . . . . . . . . . . . . . . . . . . Combat | -11 -10 -10 -10 -8 -7 -7 -7 -5 -5 -5 -5 -4 -4 -4 -4 -4 -4 -3 -3 -2 -2 -2 -------- Run | Yrd Mat Min Sub Mat Fac Sto Rec Fac Upp Upp Zhi Pro Fac Ext Cet Arc Hub Res Tes Res Qua Frg Hostile Shots Fired 1500 | . 42 . 72 358 26 15 106 21 7 16 . . 58 102 2 1 39 72 330 164 66 3 Missed 578 | . 12 . 18 101 10 9 71 7 . 8 . . 37 54 2 1 22 20 102 76 27 1 Hits 922 | . 30 . 54 257 16 6 35 14 7 8 . . 21 48 . . 17 52 228 88 39 2 Melee 10 | . . . . 10 . . . . . . . . . . . . . . . . . . Projectile 912 | . 30 . 54 247 16 6 35 14 7 8 . . 21 48 . . 17 52 228 88 39 2 AOE 3 | . . . . . . . . 3 . . . . . . . . . . . . . . Critical Strikes 45 | . . . 1 12 1 . . 1 . 1 . . 1 2 . . 3 . 19 1 3 . Actively Blocked 1 | . . . . . . . . . . . . . . . . . . . 1 . . . Part Disruptions 2 | . . . . . 1 . . . . . . . . . . . . . 1 . . . Damage Taken 18158 | . 311 . 1079 3956 166 112 310 463 113 129 . . 350 1051 . . 268 1296 5451 2111 946 46 Core 4191 | . 48 . 156 375 40 84 61 47 32 66 . . 58 385 . . 77 313 981 989 433 46 Absorbed by Shields 35 | . . . . . . . . 13 . . . . . 22 . . . . . . . . Redirected to Shielding 388 | . . . . 5 . . . 13 18 29 . . 64 155 . . . . 98 6 . . Regen/Repaired (Parts) 370 | . . . . . . . . . . . . . . . . . . 370 . . . . Core Remaining (%) 51 | 100 . . 18 31 . . 73 . . . . 85 . . . . 54 . . . . . Volleys Fired 299 | . 34 . 42 172 . . . . . 5 . . 7 1 . . 1 4 18 1 14 . Largest 2 | . 2 . 2 2 . . . . . 1 . . 1 1 . . 1 1 1 1 1 . Hottest 120 | . 88 . 110 120 . . . . . 39 . . 39 39 . . 39 39 72 72 88 . Shots Fired 532 | . 66 . 77 338 . . . . . 5 . . 7 1 . . 1 4 18 1 14 . Gun 321 | . 64 . 64 164 . . . . . . . . . . . . . . 14 1 14 . Cannon 178 | . . . 6 172 . . . . . . . . . . . . . . . . . . Launcher 33 | . 2 . 7 2 . . . . . 5 . . 7 1 . . 1 4 4 . . . Special . | . . . . . . . . . . . . . . . . . . . . . . . Kinetic 254 | . 54 . 36 164 . . . . . . . . . . . . . . . . . . Thermal 245 | . 10 . 34 172 . . . . . . . . . . . . . . 14 1 14 . Explosive 33 | . 2 . 7 2 . . . . . 5 . . 7 1 . . 1 4 4 . . . Electromagnetic . | . . . . . . . . . . . . . . . . . . . . . . . Robot Hit Streak 16 | . 7 . 11 16 . . . . . 2 . . 3 1 . . . . 4 . 1 . Robot Miss Streak 4 | . 4 . 2 3 . . . . . 2 . . 1 . . . 1 2 2 1 2 . Penetration Max 1 | . . . . 1 . . . . . . . . . . . . . . . . . . Secondary Targets 4 | . . . 2 2 . . . . . . . . . . . . . . . . . . Max Gunslinging Chain 1 | . . . 1 1 . . . . . . . . . . . . . . . . . . Shots Hit Robots 463 | . 33 . 54 218 17 . 1 11 2 3 3 3 3 26 . 19 3 3 62 . 2 . Core Hits 246 | . 26 . 24 91 9 . . 5 . 10 . . 15 16 . 6 4 13 26 . 1 . Critical Kills 2 | . . . . 2 . . . . . . . . . . . . . . . . . . Critical Parts Destroyed . | . . . . . . . . . . . . . . . . . . . . . . . Critical Strikes 15 | . . . . 2 2 . . . . . . . . 3 . . . . 8 . . . Burn 2 | . . . . . . . . . . . . . . . . . . . 2 . . . Meltdown 1 | . . . . 1 . . . . . . . . . . . . . . . . . . Destroy 1 | . . . . 1 . . . . . . . . . . . . . . . . . . Sever 5 | . . . . . 2 . . . . . . . . 3 . . . . . . . . Impale 6 | . . . . . . . . . . . . . . . . . . . 6 . . . Melee Attacks 259 | . 5 . . . 41 1 7 25 2 1 4 3 10 31 . 26 8 11 84 . . . Impact . | . . . . . . . . . . . . . . . . . . . . . . . Slashing 177 | . 5 . . . 41 1 7 25 2 1 4 3 10 31 . 26 8 11 2 . . . Piercing 82 | . . . . . . . . . . . . . . . . . . . 82 . . . Sneak Attacks 42 | . 2 . . . 9 . 1 4 2 1 . 1 . 3 . 10 . 1 8 . . . Combat Hostiles 2 | . . . . . . . . . . . . 1 . 1 . . . . . . . . Follow-up Attacks 3 | . . . . . 3 . . . . . . . . . . . . . . . . . Damage Inflicted 18620 | . 781 . 1228 4672 1053 . 64 698 173 557 210 172 1307 1343 . 1297 166 911 3860 67 61 . Guns 3682 | . 439 . 758 1956 . . . . . . . . . . . . . . 420 48 61 . Cannons 2625 | . . . 136 2489 . . . . . . . . . . . . . . . . . . Explosions 4492 | . 280 . 334 187 . . . . . 474 . . 1307 269 . . 75 783 783 . . . Melee 7622 | . 62 . . . 1053 . 64 698 173 83 210 172 . 1074 . 1297 89 128 2519 . . . Ramming 199 | . . . . 40 . . . . . . . . . . . . 2 . 138 19 . . Kinetic 2588 | . 316 . 316 1956 . . . . . . . . . . . . . . . . . . Thermal 3719 | . 123 . 578 2489 . . . . . . . . . . . . . . 420 48 61 . Explosive 4492 | . 280 . 334 187 . . . . . 474 . . 1307 269 . . 75 783 783 . . . Electromagnetic . | . . . . . . . . . . . . . . . . . . . . . . . Impact . | . . . . . . . . . . . . . . . . . . . . . . . Slashing 5201 | . 62 . . . 1053 . 64 698 173 83 210 172 . 1074 . 1297 89 128 98 . . . Piercing 2421 | . . . . . . . . . . . . . . . . . . . 2421 . . . Highest Corruption 30 | . 1 1 1 . . . . . . . . . . . . . . . 30 . . . Average Corruption 4 | . 1 1 1 . . . . . . . . . . . . . . . 18 . . . Corruption Purged . | . . . . . . . . . . . . . . . . . . . . . . . Corruption Blocked 2 | . . . . . . . . . . . . . . . . . . . . 2 . . Effects 69 | . 4 1 19 . . . . . . . . . . . . . . . 45 . . . Message Errors 11 | . . . 4 . . . . . . . . . . . . . . . 7 . . . Matter Fused 15 | . 2 . 5 . . . . . . . . . . . . . . . 8 . . . Heat Flow Errors 8 | . . . 4 . . . . . . . . . . . . . . . 4 . . . Energy Discharges 9 | . 2 1 1 . . . . . . . . . . . . . . . 5 . . . Data Loss (minor) 8 | . . . 3 . . . . . . . . . . . . . . . 5 . . . Data Loss (major) 2 | . . . 1 . . . . . . . . . . . . . . . 1 . . . Misfires 2 | . . . 1 . . . . . . . . . . . . . . . 1 . . . Alerts 2 | . . . . . . . . . . . . . . . . . . . 2 . . . Misdirections 11 | . . . . . . . . . . . . . . . . . . . 11 . . . Weapon Failures 1 | . . . . . . . . . . . . . . . . . . . 1 . . . Overload Shots 15 | . . . . . . . . . . . . . . . . . . . 14 1 . . Effects 1 | . . . . . . . . . . . . . . . . . . . 1 . . . Heat Surge 1 | . . . . . . . . . . . . . . . . . . . 1 . . . Overflow Damage 2292 | . 52 . . 41 167 . 24 146 158 24 139 92 20 76 . 418 . 44 891 . . . Projectiles 36 | . . . . 36 . . . . . . . . . . . . . . . . . . Explosions 310 | . . . . 5 . . . . . 24 . . 20 3 . . . 44 214 . . . Melee 1946 | . 52 . . . 167 . 24 146 158 . 139 92 . 73 . 418 . . 677 . . . Knockbacks 3 | . . . . 1 . . . . . . . . . . . . . . 2 . . . Impact 3 | . . . . 1 . . . . . . . . . . . . . . 2 . . . Kinetic . | . . . . . . . . . . . . . . . . . . . . . . . Secondary . | . . . . . . . . . . . . . . . . . . . . . . . Self-Inflicted Damage 145 | . 34 . . . . . . . . . . . . . . . 1 . 101 9 . . Shots 3 | . 2 . . . . . . . . . . . . . . . . . 1 . . . Rammed 8 | . . . . 2 . . . . . . . . . . . . 1 . 4 1 . . Targets Rammed 8 | . . . . 2 . . . . . . . . . . . . 1 . 4 1 . . Kicked . | . . . . . . . . . . . . . . . . . . . . . . . Crushed . | . . . . . . . . . . . . . . . . . . . . . . . Highest Temperature 451 | . 153 . 181 451 178 61 252 89 2 . . . . . . . . . 437 230 . . Average Temperature 72 | . 57 . 63 79 12 21 94 32 2 . . . . . . . . . 147 134 . . Received Heat Transfer 2891 | . 90 . 180 1854 66 24 66 96 9 . . . 9 121 . . 93 117 148 9 9 . Effects 5 | . . . . 2 . . 1 . . . . . . . . . . . 2 . . . Shutdowns 2 | . . . . 1 . . . . . . . . . . . . . . 1 . . . Energy Bleed 1 | . . . . 1 . . . . . . . . . . . . . . . . . . Interference 1 | . . . . . . . 1 . . . . . . . . . . . . . . . Damage (minor) 1 | . . . . . . . . . . . . . . . . . . . 1 . . . Siege Activations . | . . . . . . . . . . . . . . . . . . . . . . . Martial Activations . | . . . . . . . . . . . . . . . . . . . . . . . Shielding Activations . | . . . . . . . . . . . . . . . . . . . . . . . Robots Disrupted . | . . . . . . . . . . . . . . . . . . . . . . . Combat Hostiles . | . . . . . . . . . . . . . . . . . . . . . . . Robots Corrupted . | . . . . . . . . . . . . . . . . . . . . . . . Combat Hostiles . | . . . . . . . . . . . . . . . . . . . . . . . Parts Fried . | . . . . . . . . . . . . . . . . . . . . . . . Impact Corruptions 1 | . . . . . . . . . . . . . . . . . . . 1 . . . Robots Melted 2 | . . . . 1 . . . . . . . . . . . . . . 1 . . . Combat Hostiles . | . . . . . . . . . . . . . . . . . . . . . . . Parts Melted 9 | . . . 1 2 . . . . . . . . . . . . . . 6 . . . Heat Transferred 6282 | . 296 . 759 4033 . . . . . . . . . . . . . . 1040 80 74 . Parts Sabotaged . | . . . . . . . . . . . . . . . . . . . . . . . Parts Stolen . | . . . . . . . . . . . . . . . . . . . . . . . Parts Stripped . | . . . . . . . . . . . . . . . . . . . . . . . Power Chain Reactions . | . . . . . . . . . . . . . . . . . . . . . . . Alert | -11 -10 -10 -10 -8 -7 -7 -7 -5 -5 -5 -5 -4 -4 -4 -4 -4 -4 -3 -3 -2 -2 -2 ------- Run | Yrd Mat Min Sub Mat Fac Sto Rec Fac Upp Upp Zhi Pro Fac Ext Cet Arc Hub Res Tes Res Qua Frg Maximum Alert Level 2 | . . . . 2 . . . 1 . . . . 2 1 1 . 2 1 . . . . Low Security (%) 79 | 100 100 100 . 59 100 100 100 68 . . . . 22 49 77 100 64 60 100 100 100 100 Level 1 12 | . . . . 16 . . . 31 . . . . 3 50 22 . 20 39 . . . . Level 2 7 | . . . . 24 . . . . . . . . 73 . . . 14 . . . . . Level 3 . | . . . . . . . . . . . . . . . . . . . . . . . Level 4 . | . . . . . . . . . . . . . . . . . . . . . . . Level 5 . | . . . . . . . . . . . . . . . . . . . . . . . High Security . | . . . . . . . . . . . . . . . . . . . . . . . Max Security . | . . . . . . . . . . . . . . . . . . . . . . . Peak Influence 512 | . 136 45 . 501 196 16 55 305 . . . . 512 307 216 173 419 253 129 121 90 . Initial 253 | . . 45 . . 196 10 6 150 . . . . 150 247 119 63 35 253 3 8 67 . Average 130 | . 39 34 . 226 142 7 17 180 . . . . 385 165 177 123 177 178 58 26 41 . Influence Increases 6972 | . 491 . 60 1343 241 16 174 606 15 110 10 10 627 748 170 229 609 270 826 262 155 . Destroy 0b10 Robot/C 2660 | . 300 . 60 800 20 . . . . 100 . . 200 360 80 80 140 140 380 . . . Destroy 0b10 Robot/NC 355 | . 40 . . 80 25 . 5 45 . . 10 10 5 20 5 45 10 5 45 . 5 . Destroy Leader 448 | . 70 . . 196 10 . . 4 . 10 . . 20 44 . . 22 20 52 . . . Allied During Kill 217 | . . . . . . . . 1 . . . . . 80 64 57 15 . . . . . Successful Hack 420 | . 14 . . 50 51 . 29 40 . . . . 10 22 15 . 9 58 49 52 21 . Select Force Hacks 210 | . . . . . . . 60 . . . . . . . . . 150 . . . . . Disable Machine 405 | . 45 . . 30 45 . . 15 . . . . 30 30 . 45 30 15 75 . 45 . Anti-Garrison Action 150 | . . . . . . . . 150 . . . . . . . . . . . . . . Destroy Structure 427 | . 22 . . 37 15 1 5 36 . . . . 92 42 6 2 38 32 90 . 9 . Advance Influence 300 | . . . . . . . . 150 . . . . 150 . . . . . . . . . Partial Spotted 255 | . . . . . 60 15 . 75 . . . . 30 30 . . 30 . . 15 . . Lose Combat Pursuer 1125 | . . . . 150 15 . 75 90 15 . . . 90 120 . . 165 . 135 195 75 . Influence Decreases 6972 | . 375 91 85 910 651 23 190 408 144 179 10 10 120 1041 225 286 227 747 818 156 276 . Entered New Map 1246 | . . 71 13 . 237 13 10 . 74 14 . . . 260 95 96 67 231 4 7 54 . Time Decay 3972 | . 375 20 36 718 280 10 170 278 60 165 10 10 80 458 90 170 60 286 477 63 156 . Lost Part 981 | . . . 36 192 . . 10 60 10 . . . 40 60 . . 20 120 337 30 66 . Lost Ally 323 | . . . . . . . . 70 . . . . . 113 40 20 80 . . . . . Purge Threat 450 | . . . . . 134 . . . . . . . . 150 . . . 110 . 56 . . Squads Dispatched 45 | . 3 . . 10 3 1 . 7 . . . . 1 . . . 6 1 7 5 1 . Investigation 16 | . 1 . . 4 1 . . 1 . . . . . . . . 6 . . 3 . . Extermination 9 | . . . . . 1 . . 1 . . . . . . . . . 1 4 1 1 . Reinforcement 17 | . 2 . . 5 1 1 . 3 . . . . 1 . . . . . 3 1 . . Assault 2 | . . . . . . . . 2 . . . . . . . . . . . . . . Garrison 1 | . . . . 1 . . . . . . . . . . . . . . . . . . Intercept . | . . . . . . . . . . . . . . . . . . . . . . . Searches Triggered . | . . . . . . . . . . . . . . . . . . . . . . . Unchained Authorized 1 | . . . . . . . . . . . . . . . . . . 1 . . . . Construction Impeded 2 | . . . . 2 . . . . . . . . . . . . . . . . . . Haulers Reinforced . | . . . . . . . . . . . . . . . . . . . . . . . Active Scanning Responses . | . . . . . . . . . . . . . . . . . . . . . . . Cargo Convoy Interrupts . | . . . . . . . . . . . . . . . . . . . . . . . Stealth | -11 -10 -10 -10 -8 -7 -7 -7 -5 -5 -5 -5 -4 -4 -4 -4 -4 -4 -3 -3 -2 -2 -2 --------- Run | Yrd Mat Min Sub Mat Fac Sto Rec Fac Upp Upp Zhi Pro Fac Ext Cet Arc Hub Res Tes Res Qua Frg Distress Signals 20 | . 1 . . 2 1 1 3 2 . . . . 1 2 1 . 4 1 . 1 . . Communications Jammed 14 | . . . . . . . . . . . . 2 . 7 . . . . 5 . . . Distress Signals 12 | . . . . . . . . . . . . . . 7 . . . . 5 . . . Times Spotted 378 | . 22 . 13 82 8 10 15 15 7 5 . 3 24 30 5 8 35 12 44 24 14 2 Peak Tracking Total 20 | . 4 . 3 5 2 8 5 4 7 5 . 2 12 13 5 1 20 6 8 15 9 2 Tactical Retreats 43 | . . . . 7 1 . 10 4 1 . . . 2 4 . . 3 . 5 5 1 . Traps | -11 -10 -10 -10 -8 -7 -7 -7 -5 -5 -5 -5 -4 -4 -4 -4 -4 -4 -3 -3 -2 -2 -2 ------- Run | Yrd Mat Min Sub Mat Fac Sto Rec Fac Upp Upp Zhi Pro Fac Ext Cet Arc Hub Res Tes Res Qua Frg Traps Triggered 12 | . . . 2 3 1 1 . 2 . . . . . . . . . . 2 1 . . Indirectly . | . . . . . . . . . . . . . . . . . . . . . . . Trap Hack Attempts . | . . . . . . . . . . . . . . . . . . . . . . . Triggered . | . . . . . . . . . . . . . . . . . . . . . . . Disarmed . | . . . . . . . . . . . . . . . . . . . . . . . Reprogrammed 1 | . . . . . . . . . . . . . . 1 . . . . . . . . Reused . | . . . . . . . . . . . . . . . . . . . . . . . Traps Extracted . | . . . . . . . . . . . . . . . . . . . . . . . Installed . | . . . . . . . . . . . . . . . . . . . . . . . Triggered . | . . . . . . . . . . . . . . . . . . . . . . . Machines | -11 -10 -10 -10 -8 -7 -7 -7 -5 -5 -5 -5 -4 -4 -4 -4 -4 -4 -3 -3 -2 -2 -2 ---------- Run | Yrd Mat Min Sub Mat Fac Sto Rec Fac Upp Upp Zhi Pro Fac Ext Cet Arc Hub Res Tes Res Qua Frg Machines Disabled 28 | . 3 . . 2 3 . . 2 . . . . 2 2 . 3 2 1 5 . 3 . Max in Single Turn 1 | . 1 . . 1 1 . . 1 . . . . 1 1 . . . 1 1 . 1 . Garrison Access 7 | . . . . . 2 . . 2 . . . . 1 . . . . . 1 1 . . Network Hub 3 | . . . . . . . . . . . . . . . . . 3 . . . . . Machines Repaired . | . . . . . . . . . . . . . . . . . . . . . . . Machines Dismantled . | . . . . . . . . . . . . . . . . . . . . . . . Machines Sabotaged 3 | . . . . . . . . . . . . . . . . . 3 . . . . . Overloaded Fab Kills . | . . . . . . . . . . . . . . . . . . . . . . . Hacking | -11 -10 -10 -10 -8 -7 -7 -7 -5 -5 -5 -5 -4 -4 -4 -4 -4 -4 -3 -3 -2 -2 -2 --------- Run | Yrd Mat Min Sub Mat Fac Sto Rec Fac Upp Upp Zhi Pro Fac Ext Cet Arc Hub Res Tes Res Qua Frg Machines Accessed 117 | . 9 . 1 8 17 1 11 13 1 2 4 . 2 16 3 . 6 6 10 5 2 . Terminals 74 | . 7 . . 6 11 1 5 7 1 . . . 1 15 3 . 6 1 5 4 1 . Fabricators 4 | . . . . . 1 . . 2 . . . . . . . . . . 1 . . . Repair Stations 4 | . . . . 1 1 . . 1 . . . . . . . . . 1 . . . . Recycling Units 11 | . 2 . . . . . 4 2 . . . . . 1 . . . 2 . . . . Scanalyzers 9 | . . . . 1 2 . . . . . . . . . . . . 2 3 . 1 . Garrison Access 6 | . . . . . 2 . . 1 . . . . 1 . . . . . 1 1 . . Total Hacks 462 | . 28 . 4 21 47 2 25 47 8 2 17 . 6 60 10 . 31 68 53 25 8 . Successful 275 | . 10 . 4 8 30 1 15 27 8 2 17 . 3 45 5 . 17 49 24 9 1 . Failed 184 | . 18 . . 12 17 1 10 20 . . . . 3 14 5 . 14 18 29 16 7 . Catastrophic 25 | . 5 . . 2 2 . 1 1 . . . . . . . . . 2 4 6 2 . Database Lockouts 3 | . . . . 1 . . . . . . . . . 1 . . . 1 . . . . Manual 201 | . 24 . . 17 26 1 18 29 . . . . 3 34 . . 21 5 22 1 . . Terminals 293 | . 22 . . 17 36 2 15 35 8 . . . 3 55 10 . 31 5 27 22 5 . Fabricators 7 | . . . . . 2 . . 4 . . . . . . . . . . 1 . . . Repair Stations 37 | . . . . 2 2 . . 2 . . . . . . . . . 31 . . . . Recycling Units 33 | . 6 . . . . . 5 5 . . . . . 5 . . . 12 . . . . Scanalyzers 50 | . . . . 2 4 . . . . . . . . . . . . 20 21 . 3 . Garrison Access 14 | . . . . . 3 . . 1 . . . . 3 . . . . . 4 3 . . Terminal Hacks 118 | . 2 . 4 . 12 1 9 9 8 2 17 . . 27 5 . 5 2 6 8 1 . Record 28 | . . . 4 . . . 3 . 8 1 5 . . 1 4 . . 1 . 1 . . Part Schematic 10 | . . . . . . . 1 1 . . 4 . . 4 . . . . . . . . Robot Analysis 8 | . 1 . . . 2 . . . . . 4 . . 1 . . . . . . . . Prototype ID Bank 6 | . . . . . . . . . . . 4 . . 1 . . . . . 1 . . Open Door 9 | . . . . . . 1 . . . 1 . . . 5 1 . . . . 1 . . Level Access Points 2 | . . . . . . . . . . . . . . . . . 1 . 1 . . . Branch Access Points 3 | . . . . . 1 . . 1 . . . . . 1 . . . . . . . . Emergency Access Points 1 | . . . . . . . . . . . . . . . . . . . . . 1 . Machine Index 1 | . . . . . 1 . . . . . . . . . . . . . . . . . Terminal Index 10 | . 1 . . . 1 . 2 1 . . . . . 1 . . 1 . 2 1 . . Fabricator Index 1 | . . . . . 1 . . . . . . . . . . . . . . . . . Scanalyzer Index 1 | . . . . . . . . . . . . . . . . . . . 1 . . . Garrison Index 1 | . . . . . . . . 1 . . . . . . . . . . . . . . Alert Level 1 | . . . . . . . 1 . . . . . . . . . . . . . . . Unreport Threat 5 | . . . . . 2 . . . . . . . . 1 . . . 1 . 1 . . Locate Traps 3 | . . . . . . . . . . . . . . 3 . . . . . . . . Reprogram Traps 3 | . . . . . . . . . . . . . . 3 . . . . . . . . Security Status 1 | . . . . . . . . . . . . . . 1 . . . . . . . . Surveillance Status 2 | . . . . . 2 . . . . . . . . . . . . . . . . . Patrol Status 2 | . . . . . . . . . . . . . . 1 . . . . . 1 . . Recall Investigation 6 | . . . . . . . . 1 . . . . . . . . 3 . . 2 . . Recall Extermination 2 | . . . . . 1 . . 1 . . . . . . . . . . . . . . Recall Reinforcements 4 | . . . . . 1 . . 2 . . . . . . . . . . 1 . . . Registered Components 1 | . . . . . . . . . . . . . . 1 . . . . . . . . Registered Prototypes 1 | . . . . . . . . . . . . . . 1 . . . . . . . . Zone Layout 3 | . . . . . . . . 1 . . . . . 2 . . . . . . . . Protovariant Controls 1 | . . . . . . . . . . . . . . . . . . . 1 . . . Release Object 2 | . . . . . . . 2 . . . . . . . . . . . . . . . Fabricator Hacks 4 | . . . . . . . . 3 . . . . . . . . . . 1 . . . Network Status 1 | . . . . . . . . . . . . . . . . . . . 1 . . . Load Schematic 1 | . . . . . . . . 1 . . . . . . . . . . . . . . Build 2 | . . . . . . . . 2 . . . . . . . . . . . . . . Repair Station Hacks 25 | . . . . 1 2 . . . . . . . . . . . . 22 . . . . Scan Component 13 | . . . . 1 1 . . . . . . . . . . . . 11 . . . . Repair 11 | . . . . . 1 . . . . . . . . . . . . 10 . . . . Refit 1 | . . . . . . . . . . . . . . . . . . 1 . . . . Recycling Unit Hacks 9 | . 1 . . . . . . 2 . . . . . 1 . . . 5 . . . . Retrieve Matter 2 | . . . . . . . . . . . . . . . . . . 2 . . . . Retrieve Components 7 | . 1 . . . . . . 2 . . . . . 1 . . . 3 . . . . Scanalyzer 33 | . . . . 2 2 . . . . . . . . . . . . 18 11 . . . Insert Component 9 | . . . . . 1 . . . . . . . . . . . . 6 2 . . . Analyze 12 | . . . . . . . . . . . . . . . . . . 9 3 . . . Retrieve Study 12 | . . . . 2 1 . . . . . . . . . . . . 3 6 . . . Garrison Access Hacks 6 | . . . . . 2 . . 1 . . . . 1 . . . . . 1 1 . . Seal Access 6 | . . . . . 2 . . 1 . . . . 1 . . . . . 1 1 . . Unauthorized Hacks 80 | . 7 . . 5 12 . 6 12 . . . . 2 17 . . 12 2 5 . . . Terminals 69 | . 6 . . 5 12 . 4 11 . . . . 2 13 . . 12 . 4 . . . Assimilate 4 | . . . . . 3 . . 1 . . . . . . . . . . . . . . Botnet 19 | . . . . 1 3 . 1 3 . . . . 1 4 . . 3 . 3 . . . Detonate 1 | . . . . . . . . . . . . . . . . . 1 . . . . . Operators 6 | . 1 . . 1 1 . . 1 . . . . . 1 . . 1 . . . . . Skim 34 | . 5 . . 3 5 . 3 6 . . . . 1 8 . . 2 . 1 . . . Sabotage 5 | . . . . . . . . . . . . . . . . . 5 . . . . . Fabricators . | . . . . . . . . . . . . . . . . . . . . . . . Repair Stations . | . . . . . . . . . . . . . . . . . . . . . . . Recycling Units 10 | . 1 . . . . . 2 1 . . . . . 4 . . . 2 . . . . Monitor 1 | . . . . . . . . . . . . . . 1 . . . . . . . . Reject 3 | . 1 . . . . . . . . . . . . 1 . . . 1 . . . . Recyclers 3 | . . . . . . . . 1 . . . . . 1 . . . 1 . . . . Mask 1 | . . . . . . . . . . . . . . 1 . . . . . . . . Tunnel 2 | . . . . . . . 2 . . . . . . . . . . . . . . . Scanalyzers 1 | . . . . . . . . . . . . . . . . . . . 1 . . . Researchers 1 | . . . . . . . . . . . . . . . . . . . 1 . . . Garrison Access . | . . . . . . . . . . . . . . . . . . . . . . . Data Cores Recovered . | . . . . . . . . . . . . . . . . . . . . . . . Used . | . . . . . . . . . . . . . . . . . . . . . . . Hacking Detections 85 | . 9 . . 8 15 . 7 11 1 . . . 2 11 2 . 3 2 8 4 2 . Full Trace Events 7 | . 1 . . 1 . . 1 1 . . . . . . . . 1 . . 2 . . Feedback Events 1 | . 1 . . . . . . . . . . . . . . . . . . . . . Corruption 1 | . 1 . . . . . . . . . . . . . . . . . . . . . Feedback Blocked . | . . . . . . . . . . . . . . . . . . . . . . . Robot Schematics Acquired 1 | . . . . . . . . . . . . . . . . . . . 1 . . . Robots Built 3 | . . . . . . . . 3 . . . . . . . . . . . . . . Authchips . | . . . . . . . . . . . . . . . . . . . . . . . Time 84 | . . . . . . . . 84 . . . . . . . . . . . . . . Total Robot Build Rating 18 | . . . . . . . . 18 . . . . . . . . . . . . . . Part Schematics Acquired 20 | . . . . . . . 1 1 . . 4 . . 4 . . . 5 5 . . . Parts Built 1 | . . . . . . . . 1 . . . . . . . . . . . . . . Authchips . | . . . . . . . . . . . . . . . . . . . . . . . Time 36 | . . . . . . . . 36 . . . . . . . . . . . . . . Total Part Build Rating 3 | . . . . . . . . 3 . . . . . . . . . . . . . . Part Studies Acquired 11 | . . . . 1 1 . . . . . . . . . . . . 3 6 . . . Parts Repaired 11 | . . . . . 1 . . . . . . . . . . . . 10 . . . . Time 308 | . . . . . 53 . . . . . . . . . . . . 255 . . . . Parts Recycled . | . . . . . . . . . . . . . . . . . . . . . . . Recycled Matter . | . . . . . . . . . . . . . . . . . . . . . . . Retrieved Matter . | . . . . . . . . . . . . . . . . . . . . . . . Retrieved Components 3 | . . . . . . . . . . . . . . 1 . . . 2 . . . . Parts Scanalyzed 7 | . . . . . 1 . . . . . . . . . . . . 5 1 . . . Part Schematics Acquired 5 | . . . . . . . . . . . . . . . . . . 5 . . . . Parts Damaged 3 | . . . . . . . . . . . . . . . . . . 2 1 . . . Bothacking | -11 -10 -10 -10 -8 -7 -7 -7 -5 -5 -5 -5 -4 -4 -4 -4 -4 -4 -3 -3 -2 -2 -2 ------------ Run | Yrd Mat Min Sub Mat Fac Sto Rec Fac Upp Upp Zhi Pro Fac Ext Cet Arc Hub Res Tes Res Qua Frg Used RIF Installer . | . . . . . . . . . . . . . . . . . . . . . . . Robots Hacked . | . . . . . . . . . . . . . . . . . . . . . . . Non-combat . | . . . . . . . . . . . . . . . . . . . . . . . Combat . | . . . . . . . . . . . . . . . . . . . . . . . Robot Hacks Applied . | . . . . . . . . . . . . . . . . . . . . . . . Relay Couplers Released 3 | . . . . . . . . 3 . . . . . . . . . . . . . . Machine Destruction 3 | . . . . . . . . 3 . . . . . . . . . . . . . . Fabnet Peak Effective % . | . . . . . . . . . . . . . . . . . . . . . . . Robots Rewired 11 | . . . . . . . . . . . . . . 11 . . . . . . . . Allies Hacked . | . . . . . . . . . . . . . . . . . . . . . . . Hacks Repelled . | . . . . . . . . . . . . . . . . . . . . . . . Allies | -11 -10 -10 -10 -8 -7 -7 -7 -5 -5 -5 -5 -4 -4 -4 -4 -4 -4 -3 -3 -2 -2 -2 -------- Run | Yrd Mat Min Sub Mat Fac Sto Rec Fac Upp Upp Zhi Pro Fac Ext Cet Arc Hub Res Tes Res Qua Frg Total Allies 24 | . . . . . 3 . . 4 . . . . . 17 . . . . . . . . Largest Group 9 | . . . . . 3 . . 3 . . . . . 9 8 6 4 . . . . . Highest-Rated Group 404 | . . . . . 62 . . 126 . . . . . 404 375 286 192 . . . . . Highest-Rated Ally 159 | . . . . . 26 . . 42 . . . . . 159 51 51 51 . . . . . Total Orders . | . . . . . . . . . . . . . . . . . . . . . . . Ally Attacks 166 | . . . . . . . . 10 . . . . . 56 34 38 28 . . . . . Total Damage 4651 | . . . . . . . . 323 . . . . . 1940 784 982 622 . . . . . Kills 30 | . . . . . . . . 3 . . . . . 10 5 5 7 . . . . . Allies Corrupted . | . . . . . . . . . . . . . . . . . . . . . . . Allies Melted 1 | . . . . . . . . . . . . . . 1 . . . . . . . . Intel | -11 -10 -10 -10 -8 -7 -7 -7 -5 -5 -5 -5 -4 -4 -4 -4 -4 -4 -3 -3 -2 -2 -2 ------- Run | Yrd Mat Min Sub Mat Fac Sto Rec Fac Upp Upp Zhi Pro Fac Ext Cet Arc Hub Res Tes Res Qua Frg Active Infowar (turns) 14779 | . 2786 59 2751 2901 534 34 368 600 133 354 114 83 179 1053 192 340 134 640 1062 76 349 37 Optics 2356 | . . . . . . . . . . . . . . 365 192 340 134 640 223 76 349 37 Sensors 3947 | . . . . . 335 30 368 600 133 354 114 83 179 647 . . . 21 907 1 175 . Structural 1226 | . . . . . 200 4 . . . . . . . 224 . . 117 398 283 . . . Seismic 8497 | . 2786 59 2751 2901 . . . . . . . . . . . . . . . . . . Machine Analysis 103 | . . . . . . . . . . . . . . . . . 103 . . . . . Jamming 1584 | . . . . . . . . . . . 12 83 42 215 . 13 . 244 975 . . . ECM 2 | . . . . . . . . . . . . . . . . . . . . . 2 . Robot Analysis Total 8 | . 1 . . . 2 . . . . . 4 . . 1 . . . . . . . . Derelict Logs Recovered 6 | . . . 2 . . . . . 2 1 . 1 . . . . . . . . . . Drone Launches . | . . . . . . . . . . . . . . . . . . . . . . . Drone Recoveries . | . . . . . . . . . . . . . . . . . . . . . . . Exploration | -11 -10 -10 -10 -8 -7 -7 -7 -5 -5 -5 -5 -4 -4 -4 -4 -4 -4 -3 -3 -2 -2 -2 ------------- Run | Yrd Mat Min Sub Mat Fac Sto Rec Fac Upp Upp Zhi Pro Fac Ext Cet Arc Hub Res Tes Res Qua Frg Turns Passed 17578 | 44 3445 59 3252 3799 639 34 380 600 133 354 114 83 179 1213 192 340 134 640 1350 208 349 37 Spaces Moved 14742 | 37 991 13 749 1299 1680 101 971 1548 450 1035 177 264 386 1430 192 274 266 406 1459 462 500 52 Core 197 | 19 . . . . . . . . . . . . . 86 . . . . 3 27 62 . Treads 1025 | . . . . 1025 . . . . . . . . . . . . . . . . . . Legs 1783 | 18 991 13 749 2 . . . . . . . . . 7 . . . . . 3 . . Wheels 272 | . . . . 272 . . . . . . . . . . . . . . . . . . Hover 1432 | . . . . . . . . . . . . . . . . . . 114 1138 123 5 52 Flight 10033 | . . . . . 1680 101 971 1548 450 1035 177 264 386 1337 192 274 266 292 318 309 433 . Fastest Speed 20 | 50 120 400 400 150 23 20 20 23 28 28 28 28 28 23 23 23 23 21 27 27 30 66 Average Speed 86 | 84 323 400 400 224 23 22 21 25 28 28 48 28 30 34 23 23 25 33 41 37 37 66 Slowest Speed 560 | 120 400 400 400 560 26 23 93 28 28 28 103 28 109 300 23 23 106 194 310 120 400 66 Overloaded Moves 440 | . . . . . . 17 389 . . . . . . . . . . . . 34 . . Propulsion Burnouts . | . . . . . . . . . . . . . . . . . . . . . . . Robots Hopped 65 | . . . . . 7 1 5 7 . 1 . . 4 24 . . 9 . . 5 2 . Potential Cave-ins . | . . . . . . . . . . . . . . . . . . . . . . . Cave-ins Triggered . | . . . . . . . . . . . . . . . . . . . . . . . Teleports 2 | . . . . . . . . . . . . . . . . . . . 1 . 1 . Exploration Rate (%) 50 | 3 97 6 48 72 40 23 97 42 58 89 61 42 10 89 81 99 32 9 79 19 53 3 Regions Visited 22 Branch Regions 15 Pre-discovered Areas 13 | . . 1 1 . 2 . 2 . 1 1 3 1 . 1 . . . . . . . . Known Exits Taken 19 | . . . 1 1 1 1 1 1 1 1 1 1 1 1 1 1 1 1 1 1 1 . Unknown Exits Taken 3 | 1 1 1 . . . . . . . . . . . . . . . . . . . . Scrap Searched 10 | . . . 3 . . . . . 1 4 . 2 . . . . . . . . . . Spaces Dug 64 | . 2 . . 2 15 1 5 10 . . . . 6 . . . 5 4 11 . 3 . Terrain Destroyed 301 | . 17 . 23 31 15 1 5 10 . 44 . . 49 20 . . 18 20 45 . 3 . Melee 58 | . 2 . . . 15 1 5 10 . . . . 6 . . . 5 4 10 . . . Projectile 29 | . . . 1 20 . . . . . . . . . . . . . . 5 . 3 . AOE 214 | . 15 . 22 11 . . . . . 44 . . 43 20 . . 13 16 30 . . . Terrain Rammed . | . . . . . . . . . . . . . . . . . . . . . . . Walls Destroyed . | . . . . . . . . . . . . . . . . . . . . . . . Machines Disabled . | . . . . . . . . . . . . . . . . . . . . . . . Actions | -11 -10 -10 -10 -8 -7 -7 -7 -5 -5 -5 -5 -4 -4 -4 -4 -4 -4 -3 -3 -2 -2 -2 --------- Run | Yrd Mat Min Sub Mat Fac Sto Rec Fac Upp Upp Zhi Pro Fac Ext Cet Arc Hub Res Tes Res Qua Frg Total 18609 | 49 1169 23 931 1870 1877 107 1121 1701 453 1089 197 268 422 2077 338 514 310 889 2013 488 648 55 Wait 2414 | . 57 11 105 218 74 5 143 78 1 46 1 . 13 501 145 193 23 393 299 . 106 2 Move 14605 | 36 990 12 748 1298 1665 98 960 1535 449 1032 176 263 377 1390 191 273 250 405 1458 452 495 52 Hop 51 | . . . . . 7 1 5 5 . 1 . . 4 15 . . 7 . . 4 2 . Pick Up 266 | 7 41 . 12 60 25 . . 16 . 1 1 1 3 18 . 5 2 28 24 13 9 . Fast Attach 85 | 1 . . . 9 6 . . 3 . 1 7 . . 10 2 3 2 8 25 3 5 . Attach 165 | 5 1 . 10 19 13 . 1 9 1 1 1 . 4 15 . 2 7 18 40 11 6 1 Detach 42 | . . . . 1 . . 1 2 . 1 . . 1 8 . 3 6 3 12 2 2 . Swap 109 | . 18 . 7 30 17 2 4 4 . . 2 . 5 4 . 1 3 6 6 . . . Drop 221 | . 23 . 7 61 37 . 1 11 . . 6 1 . 17 . 8 1 13 25 1 9 . Fire 299 | . 34 . 42 172 . . . . . 5 . . 7 1 . . 1 4 18 1 14 . Melee 247 | . 5 . . . 33 1 6 25 2 1 3 3 8 31 . 26 8 11 84 . . . Ram 6 | . . . . . . . . . . . . . . . . . . . 5 1 . . Kick . | . . . . . . . . . . . . . . . . . . . . . . . Crush 2 | . . . . 2 . . . . . . . . . . . . . . . . . . Escape Stasis 30 | . . . . . . . . 13 . . . . . . . . . . 17 . . . Rewire 67 | . . . . . . . . . . . . . . 67 . . . . . . . . Trap . | . . . . . . . . . . . . . . . . . . . . . . . Miscellaneous . | . . . . . . . . . . . . . . . . . . . . . . . Route ------- -11/Scrapyard -10/Materials (discovered 4 exits: [*Mat x3] / [*Min]) -10/Mines -10/Subcaves -8/Materials (discovered 2 exits: *Fac x2) -7/Factory (discovered 7 exits: *Fac x3 / *Sto x2 / *Low x2) -7/Storage -7/Recycling -5/Factory (discovered 3 exits: *Fac / *Upp x2) -5/Upper Caves -5/Upper Caves (discovered 2 exits: *Fac / *Zhi) -5/Zhirov -4/Proximity Caves -4/Factory (discovered 3 exits: Res / Upp / *Ext) -4/Extension (discovered 2 exits: *Res / *Cet) -4/Cetus -4/Archives (discovered 3 exits: *Res / *Hub x2) -4/Hub_04(d) (discovered 4 exits: *Res x4) -3/Research (discovered 2 exits: *Tes x2) -3/Testing -2/Research -2/Quarantine (discovered 3 exits: [*Acc] / *Sec / *Frg) -2/Protoforge History --------- Turn | Location | Event 11 | -11/Scrapyard | Discovered new exit (range 16) 45 | -11/Scrapyard | Entered Materials 317 | -10/Materials | Build established: Mutant 620 | -10/Materials | Discovered new exit (range 14) 1090 | -10/Materials | Discovered new exit (range 15) 2525 | -10/Materials | Discovered new exit (range 13) 2919 | -10/Materials | Discovered new exit (range 15) 3490 | -10/Materials | Entered Mines 3491 | -10/Mines | Learned location of Storage (-7) 3491 | -10/Mines | Assembled infested the area 3532 | -10/Mines | Discovered new exit (range 5) 3549 | -10/Mines | Entered Subcaves 3693 | -10/Subcaves | Identified exit to Materials 4675 | -10/Subcaves | Visited Clippyterm 4687 | -10/Subcaves | Learned Factory fabricator intel 6036 | -10/Subcaves | Learned location of Zion (-7) 6036 | -10/Subcaves | Met a Zionite searching for "candidates" 6057 | -10/Subcaves | Core integrity fell below 50% 6072 | -10/Subcaves | Learned 4 Materials zone layouts 6308 | -10/Subcaves | Core integrity fell below 20% 6331 | -10/Subcaves | Lost 4 parts (1n1u2w) 6595 | -10/Subcaves | Build established: Scavenger-Mutant 6801 | -10/Subcaves | Entered Materials 6801 | -8/Materials | Evolved 4 slots: Propulsion x2, Utility x2 6802 | -8/Materials | Identified exit to Factory 7791 | -8/Materials | Central database locked down 8151 | -8/Materials | Lost 6 parts (2p2n1u1w) 8457 | -8/Materials | Discovered exit to Factory (range 8) 9993 | -8/Materials | Core integrity fell below 50% 10436 | -8/Materials | Garrison activated, responded to threat 10600 | -8/Materials | Entered Factory 10600 | -7/Factory | Evolved 2 slots: Propulsion x1, Utility x1 10601 | -7/Factory | Loaded intel: 6 fabricator locations 10629 | -7/Factory | Lost 5 parts (1p3n1u) 10756 | -7/Factory | Discovered new exit (range 12) 10760 | -7/Factory | Identified exit to Storage 10895 | -7/Factory | Repaired Broken Imp. Sensor Array 10954 | -7/Factory | Identified exit to Lower Caves 11026 | -7/Factory | Build established: Hacker-Sprinter 11041 | -7/Factory | Discovered new exit (range 15) 11107 | -7/Factory | Learned Extension garrison access intel 11177 | -7/Factory | Identified exit to Factory 11194 | -7/Factory | Learned location of Extension (-4) 11199 | -7/Factory | Learned Extension stockpile data 11222 | -7/Factory | Learned 2 Proximity Caves zone layouts 11239 | -7/Factory | Entered Storage 11272 | -7/Storage | Used back door to open Recycling access 11272 | -7/Storage | Discovered new exit (range 5) 11273 | -7/Storage | Identified exit to Recycling 11273 | -7/Storage | Entered Recycling 11274 | -7/Recycling | Met a Zionite searching for Scraptown 11406 | -7/Recycling | Discovered new exit (range 6) 11618 | -7/Recycling | Entered Scraplab 11653 | -7/Recycling | Identified exit to Factory 11653 | -7/Recycling | Entered Factory 11653 | -5/Factory | Evolved 4 slots: Power x1, Utility x3 11654 | -5/Factory | Identified exit to Upper Caves 11818 | -5/Factory | Fabricated C-35 Carver? 11916 | -5/Factory | Lost 4 parts (2n1u1w) 12031 | -5/Factory | Discovered new exit (range 16) 12051 | -5/Factory | Identified exit to Factory 12189 | -5/Factory | Fabricated System Shield? 12192 | -5/Factory | Learned location of 1 exit from Extension 12253 | -5/Factory | Entered Upper Caves 12292 | -5/Upper Caves | Identified exit to Upper Caves 12292 | -5/Upper Caves | Learned location of Warlord (-4) 12372 | -5/Upper Caves | Learned 8 Factory zone layouts 12372 | -5/Upper Caves | Learned Extension emergency access door positions 12372 | -5/Upper Caves | Learned Extension security intel 12373 | -5/Upper Caves | Attracted the attention of an 0b10 base 12386 | -5/Upper Caves | Entered another Upper Caves area 12411 | -5/Upper Caves | Encountered a Warlord checkpoint 12511 | -5/Upper Caves | Entered a destroyed Warlord outpost 12636 | -5/Upper Caves | Discovered new exit (range 6) 12638 | -5/Upper Caves | Identified exit to Zhirov 12740 | -5/Upper Caves | Entered Zhirov 12740 | -5/Zhirov | Discovered new exit (range 3) 12741 | -5/Zhirov | Identified exit to Proximity Caves 12746 | -5/Zhirov | Met Zhirov 12752 | -5/Zhirov | Learned location of Quarantine (-2) 12752 | -5/Zhirov | Learned location of Testing (-3) 12752 | -5/Zhirov | Learned location of Command (-1) 12755 | -5/Zhirov | Zhirov requested help retrieving the SGEMP Prototype 12760 | -5/Zhirov | Found Alien Artifact 12760 | -5/Zhirov | Identified Integrated Dissipator 12760 | -5/Zhirov | Installed Integrated Dissipator, increased core heat dissipation (+20) 12767 | -5/Zhirov | Found Alien Artifact 12854 | -5/Zhirov | Entered Proximity Caves 12862 | -4/Proximity Caves | Spotter reported a threat 12937 | -4/Proximity Caves | Entered Factory 12937 | -4/Factory | Evolved 2 slots: Utility x2 12938 | -4/Factory | Identified exit to Upper Caves 12938 | -4/Factory | Identified exit to Research 13010 | -4/Factory | Destroyed 10 combat bots 13107 | -4/Factory | Discovered new exit (range 9) 13115 | -4/Factory | Identified exit to Extension 13116 | -4/Factory | Entered Extension 13117 | -4/Extension | Identified exit to Cetus 13137 | -4/Extension | Lost 3 parts (2n1u) 13270 | -4/Extension | Rescued a captive Derelict 13271 | -4/Extension | Rescued a captive Derelict 13271 | -4/Extension | Rescued a captive Derelict 13379 | -4/Extension | Central database locked down 13422 | -4/Extension | Learned location of 1 exit from Proximity Caves 13484 | -4/Extension | Learned 4 Quarantine zone layouts 13534 | -4/Extension | Learned Testing garrison access intel 13575 | -4/Extension | Learned 2 Proximity Caves zone layouts 13607 | -4/Extension | Learned 2 Upper Caves zone layouts 13629 | -4/Extension | Learned location of 2 exits from Factory 13656 | -4/Extension | Build established: Hacker-Mutant 13665 | -4/Extension | Learned Testing non-interactive machine intel 13696 | -4/Extension | Learned location of 1 exit from Armory 13737 | -4/Extension | Learned 12 Research zone layouts 13741 | -4/Extension | Spotted B-86 Titan 13766 | -4/Extension | Spotted B-86 Titan 13786 | -4/Extension | Learned Factory emergency access door positions 13808 | -4/Extension | Rescued A7 13891 | -4/Extension | Rescued a captive Derelict 13891 | -4/Extension | Rescued a captive Derelict 13893 | -4/Extension | Lost 11 parts (2n9u) 13925 | -4/Extension | Rescued a captive Derelict 13959 | -4/Extension | Discovered exit to Research (range 10) 13960 | -4/Extension | Found Prototype Processor 13961 | -4/Extension | Identified Exp. Signal Interpreter 14329 | -4/Extension | Entered Cetus 14329 | -4/Cetus | Accompanied by 8 allies 14344 | -4/Cetus | Spotted Cetus Guard 14344 | -4/Cetus | Spotted Cetus Guard 14345 | -4/Cetus | Spotted Cetus Guard 14346 | -4/Cetus | Spotted Cetus Guard 14362 | -4/Cetus | Allies destroyed Cetus Guard 14362 | -4/Cetus | Allies destroyed Cetus Guard 14479 | -4/Cetus | Discovered new exit (range 22) 14483 | -4/Cetus | Identified exit to Archives 14521 | -4/Cetus | Entered Archives 14521 | -4/Archives | Accompanied by 6 allies 14610 | -4/Archives | Discovered new exit (range 22) 14619 | -4/Archives | Unable to access archive contents 14622 | -4/Archives | Build established: Scavenger-Sprinter 14623 | -4/Archives | Discovered new exit (range 21) 14760 | -4/Archives | Discovered exit to Research (range 14) 14833 | -4/Archives | Identified exit to Hub_04(d) 14861 | -4/Archives | Entered Hub_04(d) 14861 | -4/Hub_04(d) | Accompanied by 4 allies 14948 | -4/Hub_04(d) | Network Hub disabled 14949 | -4/Hub_04(d) | Lost 3 allies 14950 | -4/Hub_04(d) | Network Hub disabled 14989 | -4/Hub_04(d) | Spotted Lightning 14989 | -4/Hub_04(d) | Spotted Lightning 14995 | -4/Hub_04(d) | Network Hub disabled 14995 | -4/Hub_04(d) | Entered Research 14995 | -3/Research | Evolved 2 slots: Propulsion x1, Utility x1 14996 | -3/Research | Identified exit to Testing 15006 | -3/Research | Central database locked down 15006 | -3/Research | Identified Transdimensional Reconstructor 15030 | -3/Research | Repaired Med. Storage Unit 15068 | -3/Research | Repaired Impulse Thruster+ 15085 | -3/Research | Repaired VTOL Module+ 15106 | -3/Research | Repaired Broken Structural Scanner 15119 | -3/Research | Unchained authorized (GL-D0S) 15121 | -3/Research | Repaired Impulse Thruster+ 15143 | -3/Research | Repaired Hvy. Missile Launcher+ 15163 | -3/Research | Repaired Katana 15195 | -3/Research | Repaired Impulse Thruster+ 15230 | -3/Research | Repaired Adv. Reaction Control System 15296 | -3/Research | Repaired Broken Adv. Reaction Control System 15364 | -3/Research | Destroyed 7 combat bots 15373 | -3/Research | Lost 7 parts (2p4n1u) 15393 | -3/Research | Spotted B-86 Titan 15439 | -3/Research | Found Prototype Device 15440 | -3/Research | Identified Exp. Focal Shield 15468 | -3/Research | Found Prototype Device 15469 | -3/Research | Identified Exp. Sensor Array 15540 | -3/Research | Found Prototype Device 15540 | -3/Research | Identified Imp. Particle Accelerator 15589 | -3/Research | Found Prototype Protection 15591 | -3/Research | Identified Centrium Heavy Armor Plating 15619 | -3/Research | Lost 5 parts (3n2u) 15635 | -3/Research | Entered Testing 15636 | -3/Testing | Loaded intel: 70 non-interactive machine locations 15637 | -3/Testing | Loaded intel: 1 garrison access location 15684 | -3/Testing | Found Prototype Device 15684 | -3/Testing | Identified AEGIS Remote Shield 15770 | -3/Testing | Found Prototype Energy Gun 15770 | -3/Testing | Identified Hyp. EM Gauss Rifle 15868 | -3/Testing | Spotted Striker 15869 | -3/Testing | Spotted Striker 15962 | -3/Testing | Build established: Hacker-Ninja 16083 | -3/Testing | Found Prototype Energy Gun 16083 | -3/Testing | Identified Tachyon Dispersion Ray 16125 | -3/Testing | Found Prototype Processor 16125 | -3/Testing | Identified Spectral Analyzer 16129 | -3/Testing | Found Prototype Launcher 16129 | -3/Testing | Identified Adv. Micro-nuke Launcher 16236 | -3/Testing | Found Prototype Device 16236 | -3/Testing | Identified Exp. Shield Generator 16445 | -3/Testing | System corruption reached 10% 16492 | -3/Testing | Core integrity fell below 50% 16562 | -3/Testing | Lost 13 parts (2p6n4u1w) 16610 | -3/Testing | Lost 5 parts (2n2u1w) 16652 | -3/Testing | Scanned by Researcher 16698 | -3/Testing | Found Exp. Signal Interpreter 16720 | -3/Testing | Build established: Hacker-Mutant 16725 | -3/Testing | Found Prototype Device 16726 | -3/Testing | Identified Adv. Kinecellerator 16785 | -3/Testing | Core integrity fell below 20% 16785 | -3/Testing | System corruption reached 30% 16818 | -3/Testing | Lost 4 parts (1n3u) 16923 | -3/Testing | Identified exit to Research 16960 | -3/Testing | Warped through subspace 16985 | -3/Testing | Entered Research 16985 | -2/Research | Evolved 2 slots: Propulsion x1, Utility x1 17052 | -2/Research | Lost 14 parts (1p5n6u2w) 17126 | -2/Research | Core integrity fell below 50% 17128 | -2/Research | Lost 5 parts (1p3n1u) 17152 | -2/Research | Found Prototype Reactor 17153 | -2/Research | Identified Zero-point Reactor 17155 | -2/Research | Spotted B-90 Cyclops 17191 | -2/Research | Discovered new exit (range 8) 17193 | -2/Research | Identified exit to Quarantine 17193 | -2/Research | Entered Quarantine 17387 | -2/Quarantine | Found Alien Reactor 17387 | -2/Quarantine | Identified Matter Drive 17413 | -2/Quarantine | Core integrity fell below 20% 17419 | -2/Quarantine | Discovered new exit (range 14) 17429 | -2/Quarantine | Found Transdimensional Reconstructor 17433 | -2/Quarantine | Found Transdimensional Reconstructor 17435 | -2/Quarantine | Found Transdimensional Reconstructor 17514 | -2/Quarantine | Spotted Fortress 17519 | -2/Quarantine | Warped through subspace 17537 | -2/Quarantine | Discovered new exit (range 6) 17537 | -2/Quarantine | Discovered new exit (range 5) 17538 | -2/Quarantine | Identified exit to Protoforge 17540 | -2/Quarantine | Identified exit to Section 7 17542 | -2/Quarantine | Entered Protoforge 17550 | -2/Protoforge | Lost 8 parts (4n3u1w) 17579 | -2/Protoforge | Destroyed by H-88 Terminator with Heavy Machine Gun Last Messages --------------- 17507_ Penetrated by Slug. 17513_ Enh. Quantum Rifle destroyed. 17515_ Impulse Thruster Array+ destroyed. 17515_ Adv. Target Analyzer destroyed. 17515_ System Shield destroyed. 17515_ Critical hit (Blast). 17516_ Penetrated by Slug. 17516_ Adv. Sensor Array destroyed. 17517_ Penetrated by Slug. 17519_ Critical hit (Destroy). 17519_ Gyrokinetic Inverter destroyed. 17519_ Warped through subspace. 17537_ EXIT=FOUND 17538_ EXIT=IDENTIFIED: PROTOFORGE 17540_ EXIT=IDENTIFIED: SECTION 7 LOCATION=PROTOFORGE AMBIENT_HEAT=-20 GOAL=ESCAPE 17579_ Penetrated by Slug. 17579_ Slug penetrates Wall. Map ----- +----------------------------------------------------+ | ?????????????????????????????????????????????????? | | ????????????????????????######???????????????????? | | ????????????????????????? ???????????????????? | | ????????????????????????? ???????????????????? | | ????????????????????????? ???????????????????? | | ????????????????????????? ???????????????????? | | ?????????????????????????# #??????????????????? | | ?????????????????????????# #??????????????????? | | ?????????????????????????# #??????????????????? | | ????????????##########+??# #??????????????????? | | ????????????# ??# #??????????????????? | | ????????????# # #??????????????????? | | ????????????# """"""" # #??????????????????? | | ????????????# """"""" # #??????????????????? | | ????????????# """"""" # #??????????????????? | | ????????????# # ###+#####??????????? | | ????????????# """"""" # ???????????? | | ????????????# """"""" # ?????????????? | | ????????????# """"""" # ???????????????? | | ????????????# # h ?????????????????? | | ????????????# # h#??????????????????? | | ????????????# # #??????????????????? | | ????????????#########+#### #??????????????????? | | ???????????????# #??????????????????? | | ???????????????# #??????????????????? | | ???????????????# @ #??????????????????? | | ???????????????# #??????????????????? | | ??????????????#####+######+########??????????????? | | ??????????????# # #??????????????? | | ??????????????# # #??????????????? | | ??????????????# """""" # #??????????????? | | ??????????????# """""" # " " " " #??????????????? | | ??????????????# """""" # " " " " #??????????????? | | ??????????????# """""" # " " " " #??????????????? | | ??????????????# # #??????????????? | | ??????????????# # #??????????????? | | ??????????????#####################??????????????? | | | | | | | | | | | | | | | | | | | | | | | | | | | +----------------------------------------------------+ Best States ------------- Heat Dissipation 104 Energy Generation 48 Energy Capacity 265 Matter Stores 300 Matter Capacity 300 Sight Range 22 Robot Scan Range 20 Terrain Scan Density 10 Jamming Range 16 Power Amplification 40 Additional Mass Support 20 Corruption Block 8 Armor Coverage 950 Core Shielding 30 Power Shielding 33 Propulsion Shielding 66 Utility Shielding 66 Evasion (%) 76 Targeting Accuracy 5 Target Analysis 8 Recoil Reduction 4 Energy Filtering 50 Offensive Hacking 44 Defensive Hacking 36 Item Schematics ----------------- System Shield | -7/Recycling | Hacked Hacking Suite | -5/Factory | Hacked Assault Drone Bay | -5/Zhirov | Free Exp. Heat Sink | -5/Zhirov | Free Exp. Optical Array | -5/Zhirov | Free Imp. Arc Thrower | -5/Zhirov | Free Hvy. Gauss Cannon | -4/Extension | Hacked Cld. Nuclear Pulse Thruster | -4/Extension | Hacked Adv. Hacking Suite | -4/Extension | Hacked Adv. System Shield | -4/Extension | Hacked Adv. KE Penetrator | -3/Research | Scanalyzed Hvy. Missile Launcher | -3/Research | Scanalyzed Imp. Light Armor Plating | -3/Research | Scanalyzed Force Lance | -3/Research | Scanalyzed Adv. Reaction Control System | -3/Research | Scanalyzed Centrium Heavy Armor Plating | -3/Testing | Archive Vibroblade | -3/Testing | Archive Enh. Force Rifle | -3/Testing | Archive Exp. System Shield | -3/Testing | Archive Adv. Myomer Leg | -3/Testing | Archive Robot Schematics ------------------ A-15 Conveyor | -3/Testing | Archive Fabricated ------------ C-35 Carver | x3 | -5/Factory | Preloaded System Shield | x1 | -5/Factory Repaired ---------- Imp. Sensor Array | 99% | -7/Factory | Broken Med. Storage Unit | 12% | -3/Research Impulse Thruster | 7% | -3/Research VTOL Module | 32% | -3/Research Structural Scanner | 35% | -3/Research | Broken Hvy. Missile Launcher | 63% | -3/Research Katana | 66% | -3/Research Impulse Thruster | 65% | -3/Research Adv. Reaction Control System | 58% | -3/Research Adv. Reaction Control System | 99% | -3/Research | Broken Studied --------- Flight Unit | -8/Materials | Hacked Cesium-ion Thruster | -7/Factory | Hacked VTOL Module | -3/Research | Hacked Hvy. Missile Launcher | -3/Research | Hacked Impulse Thruster | -3/Research | Hacked Impulse Thruster Array | -3/Testing | Hacked Lgt. Antimatter Reactor | -3/Testing | Hacked Force Lance | -3/Testing | Hacked Mic. Antimatter Reactor | -3/Testing | Hacked Imp. Antigrav System | -3/Testing | Hacked Antigrav Array | -3/Testing | Hacked Alien Tech Used ----------------- Integrated Dissipator Transdimensional Reconstructor Matter Drive Achievements -------------- Professional Mechanic Challenges ------------ None Game ------ Seed TerrorCoolingDeflector Manual? 0 Play Time 03:32:54 Cumulative 159.6 hours Start 2025.10.24 @ 19:29:55 End 2025.10.24 @ 23:07:44 Sessions 1 Manual Loads 0 Difficulty Rogue Special Mode None Game No. 110 Rogue 110 Adventurer 0 Explorer 0 Win Type - Total 6 Types 4/0/1/1/0/0/0/0/0/0 Lore% 78 Gallery% 71 Achievement% 52 Wizard Run 0 Options --------- Layout 1 ASCII 0 Keyboard 0 Movement Mouse Keybinds 0 Fullscreen 2 Font 24/Smallcaps Map View 50x35 Zoom Use 0% Tactical HUD 1 Map Filters NONE Filters NONE Steam 1 RUN: 7d78e15a-c468-41a4-af09-b1c8304d9448